[Event "Late-Titled-Tuesday-Blitz-March-19-2024"]
[Site "Chess.com"]
[Date "2024.03.19"]
[Round "1"]
[White "EsmeraldasAnderson03"]
[Black "Vladimir_Zakhartsov"]
[Result "1/2-1/2"]
[WhiteElo "2549"]
[BlackElo "2983"]
[TimeControl "180+1"]
[EndTime "14:09:38 PDT"]
[Termination "Game drawn - insufficient material"]

1. d4 {[%clk 0:03:00.9]} 1... Nf6 {[%clk 0:02:46.4]} 2. c4 {[%clk 0:03:01.1]}
2... e6 {[%clk 0:02:44.7]} 3. Nc3 {[%clk 0:03:00.8]} 3... d5 {[%clk 0:02:43.3]}
4. cxd5 {[%clk 0:03:00.4]} 4... exd5 {[%clk 0:02:44.2]} 5. Bg5 {[%clk
0:02:59.5]} 5... c6 {[%clk 0:02:42.1]} 6. Qc2 {[%clk 0:02:59.7]} 6... h6 {[%clk
0:02:42.5]} 7. Bh4 {[%clk 0:03:00]} 7... Bd6 {[%clk 0:02:42.4]} 8. e3 {[%clk
0:03:00.5]} 8... O-O {[%clk 0:02:42.3]} 9. Nf3 {[%clk 0:03:00.7]} 9... Na6
{[%clk 0:02:41.6]} 10. Bxa6 {[%clk 0:02:59.7]} 10... bxa6 {[%clk 0:02:41.8]} 11.
O-O {[%clk 0:03:00.2]} 11... Bg4 {[%clk 0:02:36.2]} 12. Bg3 {[%clk 0:02:49.2]}
12... Bxf3 {[%clk 0:02:35]} 13. gxf3 {[%clk 0:02:49]} 13... Rc8 {[%clk 0:02:33]}
14. Na4 {[%clk 0:02:47.8]} 14... Re8 {[%clk 0:02:25.8]} 15. Nc5 {[%clk
0:02:46.6]} 15... Qe7 {[%clk 0:02:08.3]} 16. Rac1 {[%clk 0:02:43.8]} 16... g6
{[%clk 0:02:07.1]} 17. Nxa6 {[%clk 0:02:32.9]} 17... Nh5 {[%clk 0:02:06.4]} 18.
Kg2 {[%clk 0:02:09.6]} 18... f5 {[%clk 0:01:58.5]} 19. Bxd6 {[%clk 0:02:01.8]}
19... Qxd6 {[%clk 0:01:58.3]} 20. f4 {[%clk 0:02:02.2]} 20... Kh7 {[%clk
0:01:51]} 21. Nc5 {[%clk 0:02:01.5]} 21... Rg8 {[%clk 0:01:47.4]} 22. Rg1 {[%clk
0:02:00.6]} 22... Rcf8 {[%clk 0:01:46.1]} 23. Nd3 {[%clk 0:01:58.3]} 23... g5
{[%clk 0:01:46.1]} 24. fxg5 {[%clk 0:01:58.3]} 24... hxg5 {[%clk 0:01:42.1]} 25.
Qxc6 {[%clk 0:01:56.8]} 25... Qxc6 {[%clk 0:01:20.8]} 26. Rxc6 {[%clk
0:01:57.4]} 26... f4 {[%clk 0:01:21.5]} 27. Ne5 {[%clk 0:01:38]} 27... g4 {[%clk
0:01:18.3]} 28. Rgc1 {[%clk 0:01:33.7]} 28... f3+ {[%clk 0:01:02]} 29. Kg1
{[%clk 0:01:30.6]} 29... Nf6 {[%clk 0:01:01.3]} 30. Rc7+ {[%clk 0:01:28.9]}
30... Kh6 {[%clk 0:01:01.8]} 31. R1c6 {[%clk 0:01:26.8]} 31... Kg5 {[%clk
0:01:01.4]} 32. Nf7+ {[%clk 0:01:25.2]} 32... Kg6 {[%clk 0:00:58.3]} 33. Ne5+
{[%clk 0:01:23.5]} 33... Kf5 {[%clk 0:00:55.4]} 34. Nd7 {[%clk 0:01:11]} 34...
Nxd7 {[%clk 0:00:50.9]} 35. Rxd7 {[%clk 0:01:11.9]} 35... Ke4 {[%clk 0:00:47.9]}
36. Re6+ {[%clk 0:01:04.3]} 36... Kd3 {[%clk 0:00:47.3]} 37. Rxd5 {[%clk
0:01:03.3]} 37... Rb8 {[%clk 0:00:41.9]} 38. b3 {[%clk 0:01:03.3]} 38... Rbc8
{[%clk 0:00:09.7]} 39. Rc5 {[%clk 0:01:03.1]} 39... Ke2 {[%clk 0:00:08.2]} 40.
Re4 {[%clk 0:00:56.4]} 40... g3 {[%clk 0:00:04.8]} 41. hxg3 {[%clk 0:00:43.6]}
41... Rxg3+ {[%clk 0:00:04.6]} 42. Kh2 {[%clk 0:00:25.4]} 42... Rg2+ {[%clk
0:00:04.9]} 43. Kh3 {[%clk 0:00:26]} 43... Rh8+ {[%clk 0:00:02.8]} 44. Rh4
{[%clk 0:00:26.5]} 44... Rxh4+ {[%clk 0:00:02.5]} 45. Kxh4 {[%clk 0:00:27.4]}
45... Kxf2 {[%clk 0:00:02.8]} 46. d5 {[%clk 0:00:12.2]} 46... Kxe3 {[%clk
0:00:03.3]} 47. d6 {[%clk 0:00:12.4]} 47... Rd2 {[%clk 0:00:03.4]} 48. Kg3
{[%clk 0:00:11.3]} 48... f2 {[%clk 0:00:02.3]} 49. Re5+ {[%clk 0:00:10.8]} 49...
Kd4 {[%clk 0:00:02]} 50. Rf5 {[%clk 0:00:10.8]} 50... Ke3 {[%clk 0:00:02.5]} 51.
Rf3+ {[%clk 0:00:11.3]} 51... Ke4 {[%clk 0:00:02.7]} 52. Rxf2 {[%clk 0:00:11.5]}
52... Rxd6 {[%clk 0:00:03.3]} 53. Rc2 {[%clk 0:00:11.9]} 53... Rf6 {[%clk
0:00:03]} 54. Rd2 {[%clk 0:00:10.8]} 54... a6 {[%clk 0:00:03.2]} 55. Rd1 {[%clk
0:00:10.5]} 55... Ke3 {[%clk 0:00:03.7]} 56. Rd5 {[%clk 0:00:09.9]} 56... Rg6+
{[%clk 0:00:04.1]} 57. Kh2 {[%clk 0:00:09.3]} 57... Kf3 {[%clk 0:00:03.9]} 58.
Rd3+ {[%clk 0:00:08.1]} 58... Kf2 {[%clk 0:00:03.9]} 59. Rd2+ {[%clk 0:00:08.8]}
59... Ke3 {[%clk 0:00:04.5]} 60. Rd5 {[%clk 0:00:09.1]} 60... Kf3 {[%clk
0:00:04.8]} 61. Rd3+ {[%clk 0:00:09]} 61... Ke4 {[%clk 0:00:05.1]} 62. Rd8
{[%clk 0:00:08.3]} 62... Ke3 {[%clk 0:00:04.9]} 63. Kh3 {[%clk 0:00:07.8]} 63...
Kf4 {[%clk 0:00:04.9]} 64. Rd4+ {[%clk 0:00:08]} 64... Kf3 {[%clk 0:00:05.1]}
65. Rd3+ {[%clk 0:00:08]} 65... Ke2 {[%clk 0:00:05.1]} 66. Rd4 {[%clk
0:00:07.9]} 66... Ke3 {[%clk 0:00:05.3]} 67. Rd5 {[%clk 0:00:08.1]} 67... Ke4
{[%clk 0:00:05.6]} 68. Rd8 {[%clk 0:00:07.7]} 68... Rf6 {[%clk 0:00:03.9]} 69.
Rd2 {[%clk 0:00:07.7]} 69... Ke3 {[%clk 0:00:03.8]} 70. Rd5 {[%clk 0:00:07.5]}
70... Rf2 {[%clk 0:00:03.6]} 71. Ra5 {[%clk 0:00:07.9]} 71... Rf6 {[%clk
0:00:04.1]} 72. Kg4 {[%clk 0:00:08.6]} 72... Ke4 {[%clk 0:00:03.8]} 73. Kg5
{[%clk 0:00:08.9]} 73... Rc6 {[%clk 0:00:04.2]} 74. Ra4+ {[%clk 0:00:08.2]}
74... Kd3 {[%clk 0:00:04.2]} 75. Kf5 {[%clk 0:00:08.7]} 75... Kc3 {[%clk
0:00:04]} 76. Ke5 {[%clk 0:00:09.1]} 76... Rh6 {[%clk 0:00:04]} 77. Kd5 {[%clk
0:00:09.2]} 77... Rg6 {[%clk 0:00:04.1]} 78. Kc5 {[%clk 0:00:09.6]} 78... Rh6
{[%clk 0:00:04.5]} 79. Rc4+ {[%clk 0:00:07.9]} 79... Kb2 {[%clk 0:00:04.7]} 80.
Ra4 {[%clk 0:00:08.8]} 80... Kc3 {[%clk 0:00:05.2]} 81. Ra3 {[%clk 0:00:07.6]}
81... Kb2 {[%clk 0:00:04.7]} 82. Ra5 {[%clk 0:00:07.1]} 82... Kc3 {[%clk
0:00:04.8]} 83. Ra4 {[%clk 0:00:06.8]} 83... Kb2 {[%clk 0:00:04.9]} 84. Kb4
{[%clk 0:00:06.8]} 84... Rg6 {[%clk 0:00:03]} 85. Ka5 {[%clk 0:00:07]} 85... Rh6
{[%clk 0:00:03.4]} 86. b4 {[%clk 0:00:07.2]} 86... Rg6 {[%clk 0:00:03.4]} 87. b5
{[%clk 0:00:02.4]} 87... axb5 {[%clk 0:00:03.8]} 88. Rb4+ {[%clk 0:00:03.2]}
88... Kxa2 {[%clk 0:00:02.7]} 89. Rxb5 {[%clk 0:00:04.1]} 89... Ka3 {[%clk
0:00:03.1]} 90. Rb6 {[%clk 0:00:05]} 90... Rg5+ {[%clk 0:00:03.3]} 91. Ka6
{[%clk 0:00:05.7]} 91... Rc5 {[%clk 0:00:03.1]} 92. Kb7 {[%clk 0:00:06.6]} 92...
Rc4 {[%clk 0:00:03.6]} 93. Rc6 {[%clk 0:00:07.3]} 93... Rb4+ {[%clk 0:00:03.9]}
94. Rb6 {[%clk 0:00:07.8]} 94... Ka4 {[%clk 0:00:04.5]} 95. Rxb4+ {[%clk
0:00:06.9]} 95... Kxb4 {[%clk 0:00:05.4]} 1/2-1/2

[Event "Late-Titled-Tuesday-Blitz-March-19-2024"]
[Site "Chess.com"]
[Date "2024.03.19"]
[Round "1"]
[White "Kimkibo"]
[Black "Aslanov_Umid"]
[Result "1-0"]
[WhiteElo "2276"]
[BlackElo "2601"]
[TimeControl "180+1"]
[EndTime "14:10:23 PDT"]
[Termination "Kimkibo won by checkmate"]

1. d4 {[%clk 0:02:58.7]} 1... d5 {[%clk 0:03:00]} 2. Nf3 {[%clk 0:02:58.7]} 2...
Nf6 {[%clk 0:03:00.2]} 3. Bf4 {[%clk 0:02:58.7]} 3... c5 {[%clk 0:02:55.8]} 4.
e3 {[%clk 0:02:55.9]} 4... Nc6 {[%clk 0:02:56.3]} 5. Nbd2 {[%clk 0:02:53.9]}
5... Bg4 {[%clk 0:02:55.7]} 6. c3 {[%clk 0:02:49]} 6... e6 {[%clk 0:02:51.5]} 7.
Bb5 {[%clk 0:02:48.3]} 7... Nd7 {[%clk 0:02:49.5]} 8. Qa4 {[%clk 0:02:45]} 8...
Qb6 {[%clk 0:02:44]} 9. c4 {[%clk 0:02:15.9]} 9... Bxf3 {[%clk 0:02:21.4]} 10.
Nxf3 {[%clk 0:02:12.1]} 10... cxd4 {[%clk 0:02:21.6]} 11. Nxd4 {[%clk
0:02:10.1]} 11... Rc8 {[%clk 0:02:01.9]} 12. O-O {[%clk 0:01:49]} 12... Bc5
{[%clk 0:01:47.2]} 13. cxd5 {[%clk 0:01:47.2]} 13... exd5 {[%clk 0:01:45.1]} 14.
Nf5 {[%clk 0:01:35.2]} 14... O-O {[%clk 0:01:44.8]} 15. Bd6 {[%clk 0:01:27.5]}
15... Rfd8 {[%clk 0:01:23.4]} 16. Bxc6 {[%clk 0:01:18.3]} 16... Rxc6 {[%clk
0:00:29.5]} 17. Ne7+ {[%clk 0:00:56]} 17... Kh8 {[%clk 0:00:29.7]} 18. Nxc6
{[%clk 0:00:55.6]} 18... bxc6 {[%clk 0:00:30.6]} 19. Bxc5 {[%clk 0:00:52.9]}
19... Nxc5 {[%clk 0:00:31.5]} 20. Qf4 {[%clk 0:00:50.5]} 20... Kg8 {[%clk
0:00:26.9]} 21. Rfc1 {[%clk 0:00:46]} 21... Nd3 {[%clk 0:00:25]} 22. Qd4 {[%clk
0:00:43]} 22... Nxc1 {[%clk 0:00:23.7]} 23. Rxc1 {[%clk 0:00:42.9]} 23... Qxd4
{[%clk 0:00:18]} 24. exd4 {[%clk 0:00:41.8]} 24... Rc8 {[%clk 0:00:17.5]} 25.
Kf1 {[%clk 0:00:40.9]} 25... Kf8 {[%clk 0:00:18]} 26. Ke2 {[%clk 0:00:41]} 26...
Ke7 {[%clk 0:00:18.9]} 27. Kd3 {[%clk 0:00:40.9]} 27... Kd6 {[%clk 0:00:19.8]}
28. Re1 {[%clk 0:00:40]} 28... Rb8 {[%clk 0:00:18.3]} 29. b3 {[%clk 0:00:39.8]}
29... a5 {[%clk 0:00:18.7]} 30. Kc3 {[%clk 0:00:39.5]} 30... f6 {[%clk
0:00:14.9]} 31. f4 {[%clk 0:00:38.6]} 31... g6 {[%clk 0:00:14]} 32. g4 {[%clk
0:00:37.9]} 32... Ra8 {[%clk 0:00:13.7]} 33. f5 {[%clk 0:00:37.3]} 33... gxf5
{[%clk 0:00:09.8]} 34. gxf5 {[%clk 0:00:38.1]} 34... Kd7 {[%clk 0:00:09.1]} 35.
Re6 {[%clk 0:00:37.7]} 35... Rf8 {[%clk 0:00:09.8]} 36. h4 {[%clk 0:00:33.6]}
36... h5 {[%clk 0:00:09.3]} 37. a3 {[%clk 0:00:30.3]} 37... Rg8 {[%clk 0:00:08]}
38. Rxf6 {[%clk 0:00:29.7]} 38... Rg3+ {[%clk 0:00:08.8]} 39. Kc2 {[%clk
0:00:28.3]} 39... Rg4 {[%clk 0:00:09.7]} 40. Rh6 {[%clk 0:00:23.7]} 40... Rxh4
{[%clk 0:00:10.1]} 41. Kc3 {[%clk 0:00:18.7]} 41... Rh3+ {[%clk 0:00:10.5]} 42.
Kc2 {[%clk 0:00:18.5]} 42... Kc7 {[%clk 0:00:10.9]} 43. Rh7+ {[%clk 0:00:13.4]}
43... Kd6 {[%clk 0:00:11.2]} 44. Rh6+ {[%clk 0:00:12.4]} 44... Ke7 {[%clk
0:00:11.9]} 45. Rxc6 {[%clk 0:00:12.1]} 45... Rh2+ {[%clk 0:00:11.4]} 46. Kc3
{[%clk 0:00:11.8]} 46... Rh3+ {[%clk 0:00:12]} 47. Kc2 {[%clk 0:00:12.2]} 47...
Rf3 {[%clk 0:00:12.6]} 48. Ra6 {[%clk 0:00:07.6]} 48... Rxf5 {[%clk 0:00:12.7]}
49. Rxa5 {[%clk 0:00:08.4]} 49... h4 {[%clk 0:00:13.2]} 50. Ra7+ {[%clk
0:00:08.7]} 50... Kf6 {[%clk 0:00:12.1]} 51. Rh7 {[%clk 0:00:09.5]} 51... Kg5
{[%clk 0:00:12.1]} 52. a4 {[%clk 0:00:09.9]} 52... Kg4 {[%clk 0:00:10.7]} 53. a5
{[%clk 0:00:08.9]} 53... h3 {[%clk 0:00:04.5]} 54. b4 {[%clk 0:00:09.3]} 54...
Rf4 {[%clk 0:00:04]} 55. Kc3 {[%clk 0:00:08.7]} 55... Rf3+ {[%clk 0:00:04.2]}
56. Kb2 {[%clk 0:00:09]} 56... Rf2+ {[%clk 0:00:04.7]} 57. Kb3 {[%clk
0:00:09.1]} 57... Rf3+ {[%clk 0:00:05.3]} 58. Ka4 {[%clk 0:00:08.7]} 58... Rf1
{[%clk 0:00:04.9]} 59. b5 {[%clk 0:00:08.4]} 59... Ra1+ {[%clk 0:00:04]} 60. Kb4
{[%clk 0:00:08.5]} 60... Rb1+ {[%clk 0:00:04.7]} 61. Kc5 {[%clk 0:00:08.4]}
61... Kg3 {[%clk 0:00:05.6]} 62. a6 {[%clk 0:00:08.4]} 62... h2 {[%clk
0:00:05.5]} 63. a7 {[%clk 0:00:08.3]} 63... Rc1+ {[%clk 0:00:03.8]} 64. Kxd5
{[%clk 0:00:08.1]} 64... Rc7 {[%clk 0:00:04.6]} 65. Rxh2 {[%clk 0:00:06.2]}
65... Rxa7 {[%clk 0:00:05.3]} 66. Rh6 {[%clk 0:00:05.3]} 66... Kf4 {[%clk
0:00:04.9]} 67. Re6 {[%clk 0:00:05.3]} 67... Kf5 {[%clk 0:00:05.3]} 68. Re5+
{[%clk 0:00:05.2]} 68... Kf6 {[%clk 0:00:06]} 69. Kc5 {[%clk 0:00:05.3]} 69...
Rc7+ {[%clk 0:00:05.6]} 70. Kb6 {[%clk 0:00:05]} 70... Rd7 {[%clk 0:00:06.1]}
71. Re4 {[%clk 0:00:04.8]} 71... Kf5 {[%clk 0:00:06.4]} 72. Rh4 {[%clk
0:00:05.3]} 72... Kg5 {[%clk 0:00:06.8]} 73. Re4 {[%clk 0:00:05.3]} 73... Kf5
{[%clk 0:00:07]} 74. Re5+ {[%clk 0:00:05.7]} 74... Kf6 {[%clk 0:00:07.3]} 75.
Kc5 {[%clk 0:00:05.6]} 75... Rc7+ {[%clk 0:00:07.3]} 76. Kd6 {[%clk 0:00:05.6]}
76... Rc4 {[%clk 0:00:07.2]} 77. Kd5 {[%clk 0:00:05.1]} 77... Rc7 {[%clk
0:00:06.5]} 78. b6 {[%clk 0:00:05]} 78... Rd7+ {[%clk 0:00:06.5]} 79. Kc5 {[%clk
0:00:05.1]} 79... Rh7 {[%clk 0:00:05]} 80. Re1 {[%clk 0:00:05]} 80... Rh2 {[%clk
0:00:03.9]} 81. Rc1 {[%clk 0:00:04.6]} 81... Rb2 {[%clk 0:00:04]} 82. Kc6 {[%clk
0:00:04.7]} 82... Ke7 {[%clk 0:00:04.6]} 83. d5 {[%clk 0:00:04.9]} 83... Kd8
{[%clk 0:00:05.2]} 84. b7 {[%clk 0:00:04.6]} 84... Rb3 {[%clk 0:00:04.4]} 85. d6
{[%clk 0:00:04.5]} 85... Rb4 {[%clk 0:00:04.1]} 86. Rc5 {[%clk 0:00:04.8]} 86...
Rb3 {[%clk 0:00:04.1]} 87. Rf5 {[%clk 0:00:04.9]} 87... Rc3+ {[%clk 0:00:04.1]}
88. Rc5 {[%clk 0:00:05.3]} 88... Rb3 {[%clk 0:00:04.5]} 89. Rb5 {[%clk
0:00:05.2]} 89... Rc3+ {[%clk 0:00:05.1]} 90. Kd5 {[%clk 0:00:05.2]} 90... Kd7
{[%clk 0:00:05]} 91. b8=Q {[%clk 0:00:04.9]} 91... Rc5+ {[%clk 0:00:05.8]} 92.
Ke4 {[%clk 0:00:04.6]} 92... Rc4+ {[%clk 0:00:05.6]} 93. Kd3 {[%clk 0:00:04.5]}
93... Rc6 {[%clk 0:00:05.1]} 94. Rb7+ {[%clk 0:00:03.5]} 94... Ke6 {[%clk
0:00:05]} 95. Qe8+ {[%clk 0:00:03.8]} 95... Kd5 {[%clk 0:00:05.6]} 96. Qxc6+
{[%clk 0:00:02.9]} 96... Kxc6 {[%clk 0:00:05.8]} 97. d7 {[%clk 0:00:03.8]} 97...
Kxb7 {[%clk 0:00:06.1]} 98. d8=Q {[%clk 0:00:04.7]} 98... Kc6 {[%clk 0:00:07]}
99. Qd4 {[%clk 0:00:04.8]} 99... Kb5 {[%clk 0:00:07.3]} 100. Qd5+ {[%clk
0:00:04.8]} 100... Kb4 {[%clk 0:00:08.1]} 101. Qc6 {[%clk 0:00:04.8]} 101... Ka3
{[%clk 0:00:08.9]} 102. Qb6 {[%clk 0:00:04.7]} 102... Ka4 {[%clk 0:00:09.2]}
103. Kc3 {[%clk 0:00:05]} 103... Ka3 {[%clk 0:00:10]} 104. Qa6# {[%clk
0:00:05.4]} 1-0

[Event "Late-Titled-Tuesday-Blitz-March-19-2024"]
[Site "Chess.com"]
[Date "2024.03.19"]
[Round "1"]
[White "FrankDux44"]
[Black "cthulhuuu"]
[Result "1/2-1/2"]
[WhiteElo "2716"]
[BlackElo "2415"]
[TimeControl "180+1"]
[EndTime "14:10:34 PDT"]
[Termination "Game drawn - insufficient material"]

1. e4 {[%clk 0:03:00.9]} 1... d6 {[%clk 0:02:59.4]} 2. Nc3 {[%clk 0:02:59.9]}
2... Nf6 {[%clk 0:02:59.6]} 3. f4 {[%clk 0:02:59.1]} 3... c5 {[%clk 0:02:58.5]}
4. Nf3 {[%clk 0:02:58.7]} 4... Nc6 {[%clk 0:02:58.7]} 5. Bb5 {[%clk 0:02:53.8]}
5... e6 {[%clk 0:02:51.2]} 6. O-O {[%clk 0:02:53.2]} 6... Be7 {[%clk 0:02:51.5]}
7. d3 {[%clk 0:02:52.8]} 7... O-O {[%clk 0:02:51.5]} 8. Bxc6 {[%clk 0:02:51.5]}
8... bxc6 {[%clk 0:02:51.6]} 9. Kh1 {[%clk 0:02:52.1]} 9... Rb8 {[%clk
0:02:35.6]} 10. b3 {[%clk 0:02:52.3]} 10... Qa5 {[%clk 0:02:30.5]} 11. Bd2
{[%clk 0:02:52.4]} 11... Qa6 {[%clk 0:02:26.7]} 12. e5 {[%clk 0:02:51.4]} 12...
Nd5 {[%clk 0:02:03.4]} 13. exd6 {[%clk 0:02:49.8]} 13... Bxd6 {[%clk 0:02:03.4]}
14. Ne5 {[%clk 0:02:35.2]} 14... Bxe5 {[%clk 0:01:54.5]} 15. fxe5 {[%clk
0:02:33.6]} 15... Nxc3 {[%clk 0:01:55]} 16. Bxc3 {[%clk 0:02:33.2]} 16... c4
{[%clk 0:01:55.5]} 17. bxc4 {[%clk 0:02:32.4]} 17... c5 {[%clk 0:01:55.8]} 18.
Bd2 {[%clk 0:02:21.3]} 18... Bb7 {[%clk 0:01:53.9]} 19. Qg4 {[%clk 0:02:21.4]}
19... Qc6 {[%clk 0:01:46]} 20. Rf2 {[%clk 0:02:16.7]} 20... Kh8 {[%clk
0:01:38.1]} 21. Raf1 {[%clk 0:02:15.2]} 21... Qd7 {[%clk 0:01:27.7]} 22. Qh5
{[%clk 0:02:11]} 22... Kg8 {[%clk 0:01:12.3]} 23. Rf4 {[%clk 0:02:08.7]} 23...
f5 {[%clk 0:00:03]} 24. exf6 {[%clk 0:02:07.1]} 24... Rxf6 {[%clk 0:00:03]} 25.
Rxf6 {[%clk 0:02:06.1]} 25... gxf6 {[%clk 0:00:03.2]} 26. Rxf6 {[%clk
0:02:00.9]} 26... Be4 {[%clk 0:00:01.1]} 27. Qg5+ {[%clk 0:01:49.2]} 27... Bg6
{[%clk 0:00:01.6]} 28. Rf1 {[%clk 0:01:48.4]} 28... Rb2 {[%clk 0:00:02.2]} 29.
Qf6 {[%clk 0:01:42.9]} 29... Qf7 {[%clk 0:00:02.5]} 30. Qd8+ {[%clk 0:01:42.4]}
30... Qe8 {[%clk 0:00:03.1]} 31. Qf6 {[%clk 0:01:27.7]} 31... Qf7 {[%clk
0:00:03.5]} 32. Qxf7+ {[%clk 0:01:13.6]} 32... Bxf7 {[%clk 0:00:04.4]} 33. Be3
{[%clk 0:01:14.2]} 33... Rxc2 {[%clk 0:00:03.7]} 34. Bxc5 {[%clk 0:01:14.8]}
34... Rxa2 {[%clk 0:00:04.3]} 35. h3 {[%clk 0:01:13.9]} 35... Bg6 {[%clk
0:00:04.8]} 36. d4 {[%clk 0:01:13]} 36... Bd3 {[%clk 0:00:05.2]} 37. Rf8+ {[%clk
0:01:05.8]} 37... Kg7 {[%clk 0:00:05.2]} 38. d5 {[%clk 0:01:00.5]} 38... exd5
{[%clk 0:00:04.9]} 39. cxd5 {[%clk 0:01:00.8]} 39... Be4 {[%clk 0:00:05.4]} 40.
Rf4 {[%clk 0:00:42.3]} 40... Bxg2+ {[%clk 0:00:05]} 41. Kg1 {[%clk 0:00:41.3]}
41... Bxd5 {[%clk 0:00:05.9]} 42. Bd4+ {[%clk 0:00:39.4]} 42... Kg6 {[%clk
0:00:05.8]} 43. Rg4+ {[%clk 0:00:39.9]} 43... Kf5 {[%clk 0:00:06]} 44. Rg3
{[%clk 0:00:39.3]} 44... Ke4 {[%clk 0:00:06.3]} 45. Bf6 {[%clk 0:00:37.8]} 45...
Kf5 {[%clk 0:00:06.3]} 46. Bg7 {[%clk 0:00:36.7]} 46... a5 {[%clk 0:00:05.9]}
47. h4 {[%clk 0:00:36.5]} 47... a4 {[%clk 0:00:06.2]} 48. Rg5+ {[%clk
0:00:36.7]} 48... Ke4 {[%clk 0:00:06.1]} 49. Re5+ {[%clk 0:00:37.2]} 49... Kf3
{[%clk 0:00:03.2]} 50. Rxd5 {[%clk 0:00:36.7]} 50... Rg2+ {[%clk 0:00:03.6]} 51.
Kf1 {[%clk 0:00:36.5]} 51... Rxg7 {[%clk 0:00:03.8]} 52. Rd3+ {[%clk 0:00:36.8]}
52... Kg4 {[%clk 0:00:04]} 53. Rd4+ {[%clk 0:00:36.9]} 53... Kh3 {[%clk
0:00:04.5]} 54. Rxa4 {[%clk 0:00:33.8]} 54... Rg4 {[%clk 0:00:05]} 55. Ra3+
{[%clk 0:00:34.1]} 55... Kxh4 {[%clk 0:00:05.1]} 56. Kf2 {[%clk 0:00:34.6]}
56... h5 {[%clk 0:00:05]} 57. Ra5 {[%clk 0:00:33.5]} 57... Rf4+ {[%clk
0:00:05.1]} 58. Kg2 {[%clk 0:00:33.5]} 58... Kg4 {[%clk 0:00:05.6]} 59. Ra6
{[%clk 0:00:32.7]} 59... h4 {[%clk 0:00:05.4]} 60. Rg6+ {[%clk 0:00:32.2]} 60...
Kf5 {[%clk 0:00:05.5]} 61. Ra6 {[%clk 0:00:30.6]} 61... Rg4+ {[%clk 0:00:06]}
62. Kh3 {[%clk 0:00:30.9]} 62... Re4 {[%clk 0:00:06.1]} 63. Ra5+ {[%clk
0:00:31]} 63... Kf6 {[%clk 0:00:06.4]} 64. Ra6+ {[%clk 0:00:30.1]} 64... Ke5
{[%clk 0:00:06.5]} 65. Ra8 {[%clk 0:00:29.8]} 65... Kd4 {[%clk 0:00:06.7]} 66.
Rd8+ {[%clk 0:00:29.7]} 66... Ke3 {[%clk 0:00:06.9]} 67. Rf8 {[%clk 0:00:30.5]}
67... Kd3 {[%clk 0:00:06.9]} 68. Kg2 {[%clk 0:00:30.1]} 68... Ke3 {[%clk
0:00:07.2]} 69. Rf7 {[%clk 0:00:29.6]} 69... Kd3 {[%clk 0:00:07.7]} 70. Kf3
{[%clk 0:00:30.1]} 70... Re3+ {[%clk 0:00:06.8]} 71. Kf2 {[%clk 0:00:30.6]}
71... Re6 {[%clk 0:00:06]} 72. Rf4 {[%clk 0:00:29.5]} 72... Rh6 {[%clk
0:00:06.2]} 73. Kg2 {[%clk 0:00:29.4]} 73... h3+ {[%clk 0:00:06.5]} 74. Kh2
{[%clk 0:00:30]} 74... Ke3 {[%clk 0:00:07]} 75. Rf5 {[%clk 0:00:30.4]} 75... Ke4
{[%clk 0:00:07.2]} 76. Rf1 {[%clk 0:00:30.3]} 76... Ke3 {[%clk 0:00:07.6]} 77.
Re1+ {[%clk 0:00:30.7]} 77... Kf3 {[%clk 0:00:07.9]} 78. Ra1 {[%clk 0:00:31.6]}
78... Ke3 {[%clk 0:00:08.2]} 79. Ra2 {[%clk 0:00:31.9]} 79... Kf3 {[%clk
0:00:08.3]} 80. Ra3+ {[%clk 0:00:32.5]} 80... Ke4 {[%clk 0:00:08.6]} 81. Ra4+
{[%clk 0:00:33.3]} 81... Ke3 {[%clk 0:00:08.7]} 82. Ra5 {[%clk 0:00:33.9]} 82...
Ke4 {[%clk 0:00:08.9]} 83. Ra7 {[%clk 0:00:33.5]} 83... Ke3 {[%clk 0:00:09.1]}
84. Re7+ {[%clk 0:00:33.7]} 84... Kd3 {[%clk 0:00:09.6]} 85. Rf7 {[%clk
0:00:34.6]} 85... Ke3 {[%clk 0:00:10.1]} 86. Rg7 {[%clk 0:00:34.9]} 86... Kf3
{[%clk 0:00:10.4]} 87. Rg3+ {[%clk 0:00:35.3]} 87... Kf4 {[%clk 0:00:10.5]} 88.
Rg1 {[%clk 0:00:36.2]} 88... Kf3 {[%clk 0:00:10.7]} 89. Rf1+ {[%clk 0:00:36.9]}
89... Ke3 {[%clk 0:00:11.2]} 90. Re1+ {[%clk 0:00:36.9]} 90... Kf2 {[%clk
0:00:11.5]} 91. Ra1 {[%clk 0:00:37.8]} 91... Ke3 {[%clk 0:00:11.5]} 92. Ra2
{[%clk 0:00:38.1]} 92... Ke4 {[%clk 0:00:11.9]} 93. Ra5 {[%clk 0:00:38.5]} 93...
Ke3 {[%clk 0:00:12.3]} 94. Re5+ {[%clk 0:00:38.4]} 94... Kf4 {[%clk 0:00:12.5]}
95. Ra5 {[%clk 0:00:39.3]} 95... Ke3 {[%clk 0:00:12.8]} 96. Ra4 {[%clk
0:00:39.9]} 96... Kd3 {[%clk 0:00:13]} 97. Kh1 {[%clk 0:00:40]} 97... h2 {[%clk
0:00:12.5]} 98. Ra3+ {[%clk 0:00:40.4]} 98... Ke2 {[%clk 0:00:12.8]} 99. Ra2+
{[%clk 0:00:40.8]} 99... Ke3 {[%clk 0:00:13.2]} 100. Ra3+ {[%clk 0:00:41]}
100... Kf2 {[%clk 0:00:13.6]} 101. Ra2+ {[%clk 0:00:41.1]} 101... Kf3 {[%clk
0:00:14.2]} 102. Ra3+ {[%clk 0:00:41.5]} 102... Kf2 {[%clk 0:00:14.7]} 103. Ra4
{[%clk 0:00:41.4]} 103... Kf3 {[%clk 0:00:15.1]} 104. Ra5 {[%clk 0:00:40.9]}
104... Kf2 {[%clk 0:00:15.6]} 105. Ra8 {[%clk 0:00:40.4]} 105... Kf3 {[%clk
0:00:15.9]} 106. Rf8+ {[%clk 0:00:40.8]} 106... Kg3 {[%clk 0:00:16.4]} 107. Rg8+
{[%clk 0:00:41.5]} 107... Kh3 {[%clk 0:00:16.7]} 108. Rg7 {[%clk 0:00:42.3]}
108... Rh5 {[%clk 0:00:16.8]} 109. Rg6 {[%clk 0:00:41.8]} 109... Rh4 {[%clk
0:00:17.2]} 110. Rg2 {[%clk 0:00:38.9]} 110... Rg4 {[%clk 0:00:15.8]} 111. Rxh2+
{[%clk 0:00:38.4]} 111... Kg3 {[%clk 0:00:16.3]} 112. Rg2+ {[%clk 0:00:39.1]}
112... Kf3 {[%clk 0:00:16]} 113. Ra2 {[%clk 0:00:39.2]} 113... Rh4+ {[%clk
0:00:16.4]} 114. Kg1 {[%clk 0:00:39.4]} 114... Rg4+ {[%clk 0:00:16.9]} 115. Kf1
{[%clk 0:00:39.9]} 115... Kf4 {[%clk 0:00:17.3]} 116. Kf2 {[%clk 0:00:39.6]}
116... Kg5 {[%clk 0:00:16.6]} 117. Ra5+ {[%clk 0:00:40]} 117... Kh4 {[%clk
0:00:17.1]} 118. Kf3 {[%clk 0:00:40.1]} 118... Rg3+ {[%clk 0:00:17.4]} 119. Kf4
{[%clk 0:00:40.7]} 119... Rg4+ {[%clk 0:00:17.9]} 120. Kf3 {[%clk 0:00:41.2]}
120... Rg3+ {[%clk 0:00:18.4]} 121. Kf2 {[%clk 0:00:41.9]} 121... Rg5 {[%clk
0:00:18.8]} 122. Ra4+ {[%clk 0:00:42]} 122... Rg4 {[%clk 0:00:19.2]} 123. Ra8
{[%clk 0:00:42.7]} 123... Kg5 {[%clk 0:00:19.3]} 124. Kf3 {[%clk 0:00:43]}
124... Rf4+ {[%clk 0:00:19.8]} 125. Kg3 {[%clk 0:00:43.6]} 125... Rg4+ {[%clk
0:00:20.3]} 126. Kf3 {[%clk 0:00:44.2]} 126... Rf4+ {[%clk 0:00:20.8]} 127. Ke3
{[%clk 0:00:44.9]} 127... Rg4 {[%clk 0:00:21.3]} 128. Rf8 {[%clk 0:00:44.5]}
128... Kg6 {[%clk 0:00:20.4]} 129. Kf3 {[%clk 0:00:44.5]} 129... Ra4 {[%clk
0:00:19.7]} 130. Rb8 {[%clk 0:00:44.3]} 130... Kf6 {[%clk 0:00:20]} 131. Rb6+
{[%clk 0:00:44.5]} 131... Ke5 {[%clk 0:00:20.3]} 132. Ke3 {[%clk 0:00:45.1]}
132... Ra3+ {[%clk 0:00:20.4]} 133. Kd2 {[%clk 0:00:45.7]} 133... Kd4 {[%clk
0:00:21]} 134. Kc2 {[%clk 0:00:46.1]} 134... Rh3 {[%clk 0:00:21.5]} 135. Rd6+
{[%clk 0:00:46.4]} 135... Kc5 {[%clk 0:00:21.8]} 136. Rd3 {[%clk 0:00:46.1]}
136... Rxd3 {[%clk 0:00:22]} 137. Kxd3 {[%clk 0:00:45.9]} 1/2-1/2